[Event "Titled Tuesday Blitz August 08 Early 2023"]
[White "Ashraf, Artin"]
[Black "Pham, Le Thao Nguyen"]
[WhiteFideId "22514805"]
[BlackFideId "12401226"]
[WhiteElo "2812"]
[BlackElo "2662"]
[Result "1-0"]
[Round "11"]
[TimeControl "180+1"]
[Date "2023.08.08"]
[WhiteClock "0:00:09"]
[BlackClock "0:00:07"]
[Board "25"]

1. e4 {[%clk 0:03:00]}  c6 {[%clk 0:02:53]} 2. d3 {[%clk 0:02:53]}  d5 {[%clk 0:02:50]} 3. Nf3 {[%clk 0:02:53]}  dxe4 {[%clk 0:02:40]} 4. dxe4 {[%clk 0:02:52]}  Qxd1+ {[%clk 0:02:41]} 5. Kxd1 {[%clk 0:02:53]}  Nf6 {[%clk 0:02:39]} 6. Nfd2 {[%clk 0:02:49]}  g5 {[%clk 0:02:38]} 7. Nc3 {[%clk 0:02:40]}  Rg8 {[%clk 0:02:14]} 8. a4 {[%clk 0:02:35]}  Be6 {[%clk 0:02:07]} 9. Bc4 {[%clk 0:02:34]}  Bxc4 {[%clk 0:02:06]} 10. Nxc4 {[%clk 0:02:34]}  Nbd7 {[%clk 0:01:49]} 11. f3 {[%clk 0:02:33]}  e6 {[%clk 0:01:47]} 12. Be3 {[%clk 0:02:20]}  Bb4 {[%clk 0:01:44]} 13. Ke2 {[%clk 0:02:17]}  g4 {[%clk 0:01:32]} 14. Rad1 {[%clk 0:02:14]}  Ke7 {[%clk 0:01:27]} 15. Na2 {[%clk 0:02:13]}  Bc5 {[%clk 0:01:23]} 16. Bxc5+ {[%clk 0:02:05]}  Nxc5 {[%clk 0:01:23]} 17. Nc3 {[%clk 0:02:05]}  gxf3+ {[%clk 0:01:20]} 18. Kxf3 {[%clk 0:02:04]}  Ncd7 {[%clk 0:01:17]} 19. g3 {[%clk 0:01:59]}  Ng4 {[%clk 0:01:14]} 20. Ke2 {[%clk 0:01:53]}  Nge5 {[%clk 0:01:12]} 21. Ne3 {[%clk 0:01:53]}  a5 {[%clk 0:01:09]} 22. Rhf1 {[%clk 0:01:52]}  h5 {[%clk 0:01:04]} 23. Rf4 {[%clk 0:01:51]}  Rg5 {[%clk 0:01:01]} 24. Nb1 {[%clk 0:01:49]}  Ng4 {[%clk 0:00:52]} 25. Nf1 {[%clk 0:01:20]}  Nc5 {[%clk 0:00:41]} 26. Nc3 {[%clk 0:01:20]}  Rh8 {[%clk 0:00:33]} 27. h3 {[%clk 0:00:59]}  Ne5 {[%clk 0:00:32]} 28. b3 {[%clk 0:01:00]}  Rhg8 {[%clk 0:00:28]} 29. Kf2 {[%clk 0:00:57]}  R8g6 {[%clk 0:00:20]} 30. Rd2 {[%clk 0:00:50]}  Rg8 {[%clk 0:00:20]} 31. Re2 {[%clk 0:00:48]}  R5g7 {[%clk 0:00:20]} 32. Ke3 {[%clk 0:00:44]}  Rd8 {[%clk 0:00:18]} 33. Rff2 {[%clk 0:00:43]}  Rgg8 {[%clk 0:00:17]} 34. Rd2 {[%clk 0:00:41]}  f6 {[%clk 0:00:16]} 35. Rxd8 {[%clk 0:00:34]}  Rxd8 {[%clk 0:00:17]} 36. Rd2 {[%clk 0:00:35]}  Rg8 {[%clk 0:00:17]} 37. Kf2 {[%clk 0:00:33]}  Rf8 {[%clk 0:00:16]} 38. Ne3 {[%clk 0:00:33]}  Rg8 {[%clk 0:00:15]} 39. Rd4 {[%clk 0:00:30]}  Na6 {[%clk 0:00:15]} 40. Ne2 {[%clk 0:00:30]}  Nb4 {[%clk 0:00:15]} 41. Nf4 {[%clk 0:00:29]}  Rh8 {[%clk 0:00:13]} 42. Rd2 {[%clk 0:00:25]}  Rh7 {[%clk 0:00:13]} 43. Neg2 {[%clk 0:00:18]}  Rg7 {[%clk 0:00:12]} 44. Ne1 {[%clk 0:00:17]}  Rh7 {[%clk 0:00:11]} 45. Nf3 {[%clk 0:00:14]}  Rh8 {[%clk 0:00:10]} 46. Nxe5 {[%clk 0:00:13]}  fxe5 {[%clk 0:00:09]} 47. Ng6+ {[%clk 0:00:13]}  Kf6 {[%clk 0:00:10]} 48. Nxh8 {[%clk 0:00:14]}  Kg7 {[%clk 0:00:10]} 49. c3 {[%clk 0:00:13]}  Na6 {[%clk 0:00:09]} 50. Rd7+ {[%clk 0:00:12]}  Kxh8 {[%clk 0:00:08]} 51. b4 {[%clk 0:00:09]}  Nc5 {[%clk 0:00:07]} 52. bxc5 {[%clk 0:00:09]} 1-0


[Site "https://www.chess.com"]

[Event "Titled Tuesday Blitz August 08 Early 2023"]
[White "Sharavdorj, Dashzegve"]
[Black "Rahman, Masruri"]
[WhiteFideId "4900340"]
[BlackFideId "7101163"]
[WhiteElo "2642"]
[BlackElo "2789"]
[Result "1-0"]
[Round "11"]
[TimeControl "180+1"]
[Date "2023.08.08"]
[WhiteClock "0:01:30"]
[BlackClock "0:00:17"]
[Board "28"]

1. d4 {[%clk 0:02:59]}  e6 {[%clk 0:02:56]} 2. c4 {[%clk 0:02:59]}  Nf6 {[%clk 0:02:46]} 3. Nf3 {[%clk 0:02:57]}  b6 {[%clk 0:02:44]} 4. a3 {[%clk 0:02:56]}  Bb7 {[%clk 0:02:43]} 5. Nc3 {[%clk 0:02:55]}  d5 {[%clk 0:02:44]} 6. cxd5 {[%clk 0:02:54]}  Nxd5 {[%clk 0:02:43]} 7. Qc2 {[%clk 0:02:54]}  Nd7 {[%clk 0:02:41]} 8. e4 {[%clk 0:02:53]}  Nxc3 {[%clk 0:02:34]} 9. bxc3 {[%clk 0:02:53]}  Be7 {[%clk 0:02:35]} 10. Bd3 {[%clk 0:02:53]}  O-O {[%clk 0:02:32]} 11. O-O {[%clk 0:02:52]}  c5 {[%clk 0:02:31]} 12. Bf4 {[%clk 0:02:52]}  Rc8 {[%clk 0:02:30]} 13. Qe2 {[%clk 0:02:51]}  cxd4 {[%clk 0:02:28]} 14. cxd4 {[%clk 0:02:50]}  Re8 {[%clk 0:02:28]} 15. a4 {[%clk 0:02:47]}  Bb4 {[%clk 0:02:18]} 16. h3 {[%clk 0:02:42]}  h6 {[%clk 0:02:12]} 17. Rfb1 {[%clk 0:02:36]}  Bc3 {[%clk 0:02:07]} 18. Ra2 {[%clk 0:02:28]}  Nf6 {[%clk 0:02:08]} 19. Qe3 {[%clk 0:02:09]}  Ba5 {[%clk 0:01:55]} 20. Rd1 {[%clk 0:01:52]}  Rc3 {[%clk 0:01:53]} 21. Qe2 {[%clk 0:01:50]}  Rxd3 {[%clk 0:01:51]} 22. Rxd3 {[%clk 0:01:46]}  Nxe4 {[%clk 0:01:43]} 23. Rc2 {[%clk 0:01:41]}  Qd5 {[%clk 0:01:33]} 24. Re3 {[%clk 0:01:35]}  Rd8 {[%clk 0:01:14]} 25. Rc7 {[%clk 0:01:33]}  Nf6 {[%clk 0:00:17]} 26. Re5 {[%clk 0:01:30]} 1-0


[Site "https://www.chess.com"]

[Event "Titled Tuesday Blitz August 08 Early 2023"]
[White "Aevengho"]
[Black "Cherniaiev, Tykhon"]
[BlackFideId "14182360"]
[WhiteElo "2621"]
[BlackElo "2781"]
[Result "0-1"]
[Round "11"]
[TimeControl "180+1"]
[Date "2023.08.08"]
[WhiteClock "0:00:00"]
[BlackClock "0:00:11"]
[Board "29"]

1. e4 {[%clk 0:03:00]}  e5 {[%clk 0:03:00]} 2. Nf3 {[%clk 0:03:00]}  Nc6 {[%clk 0:03:00]} 3. d4 {[%clk 0:03:00]}  exd4 {[%clk 0:03:00]} 4. Bc4 {[%clk 0:03:01]}  Nf6 {[%clk 0:02:54]} 5. e5 {[%clk 0:03:01]}  d5 {[%clk 0:02:54]} 6. Bb5 {[%clk 0:03:01]}  Ne4 {[%clk 0:02:54]} 7. Nxd4 {[%clk 0:03:02]}  Bd7 {[%clk 0:02:55]} 8. Bxc6 {[%clk 0:03:01]}  bxc6 {[%clk 0:02:56]} 9. O-O {[%clk 0:03:00]}  Bc5 {[%clk 0:02:55]} 10. Be3 {[%clk 0:02:59]}  O-O {[%clk 0:02:55]} 11. f3 {[%clk 0:02:55]}  Ng5 {[%clk 0:02:54]} 12. f4 {[%clk 0:02:55]}  Ne4 {[%clk 0:02:53]} 13. Nd2 {[%clk 0:02:55]}  Nxd2 {[%clk 0:02:52]} 14. Qxd2 {[%clk 0:02:56]}  Qe7 {[%clk 0:02:52]} 15. Nb3 {[%clk 0:02:52]}  Bxe3+ {[%clk 0:02:48]} 16. Qxe3 {[%clk 0:02:53]}  f6 {[%clk 0:02:34]} 17. Nc5 {[%clk 0:02:40]}  Bf5 {[%clk 0:02:32]} 18. c3 {[%clk 0:02:36]}  Rae8 {[%clk 0:02:19]} 19. Rae1 {[%clk 0:02:35]}  fxe5 {[%clk 0:02:19]} 20. fxe5 {[%clk 0:02:36]}  Bg6 {[%clk 0:02:16]} 21. Rxf8+ {[%clk 0:02:34]}  Rxf8 {[%clk 0:02:17]} 22. b4 {[%clk 0:02:33]}  Ra8 {[%clk 0:02:13]} 23. Nb3 {[%clk 0:02:21]}  Be4 {[%clk 0:02:09]} 24. Nd4 {[%clk 0:01:51]}  Qxe5 {[%clk 0:02:00]} 25. Nxc6 {[%clk 0:01:51]}  Qd6 {[%clk 0:02:01]} 26. Nd4 {[%clk 0:01:51]}  c5 {[%clk 0:01:56]} 27. Nb5 {[%clk 0:01:46]}  Qg6 {[%clk 0:01:54]} 28. Qg3 {[%clk 0:01:42]}  Qb6 {[%clk 0:01:29]} 29. Nd6 {[%clk 0:01:20]}  cxb4+ {[%clk 0:01:13]} 30. Kh1 {[%clk 0:01:20]}  bxc3 {[%clk 0:00:57]} 31. Nxe4 {[%clk 0:01:20]}  dxe4 {[%clk 0:00:56]} 32. Qxc3 {[%clk 0:01:20]}  Re8 {[%clk 0:00:53]} 33. Qc4+ {[%clk 0:01:06]}  Kh8 {[%clk 0:00:53]} 34. Qf7 {[%clk 0:01:06]}  Qb8 {[%clk 0:00:42]} 35. h3 {[%clk 0:00:59]}  h6 {[%clk 0:00:42]} 36. a4 {[%clk 0:00:31]}  a5 {[%clk 0:00:29]} 37. Qf5 {[%clk 0:00:29]}  Qb4 {[%clk 0:00:27]} 38. Ra1 {[%clk 0:00:07]}  e3 {[%clk 0:00:23]} 39. Qb5 {[%clk 0:00:08]}  Qe4 {[%clk 0:00:19]} 40. Qxa5 {[%clk 0:00:06]}  Rf8 {[%clk 0:00:17]} 41. Qe1 {[%clk 0:00:02]}  e2 {[%clk 0:00:11]} 42. a5 {[%clk 0:00:02]}  Rf1+ {[%clk 0:00:10]} 43. Qxf1 {[%clk 0:00:02]}  exf1=Q+ {[%clk 0:00:11]} 44. Rxf1 {[%clk 0:00:03]}  Qa4 {[%clk 0:00:11]} 45. Rf3 {[%clk 0:00:02]}  Qxa5 {[%clk 0:00:11]} 46. Kh2 {[%clk 0:00:03]}  Kh7 {[%clk 0:00:11]} 47. Kg1 {[%clk 0:00:03]}  Qe5 {[%clk 0:00:11]} 48. Kh1 {[%clk 0:00:02]}  g5 {[%clk 0:00:11]} 49. Kg1 {[%clk 0:00:02]}  Kg6 {[%clk 0:00:11]} 50. Kh1 {[%clk 0:00:03]}  Qe1+ {[%clk 0:00:11]} 51. Kh2 {[%clk 0:00:00]}  h5 {[%clk 0:00:11]} 0-1


[Site "https://www.chess.com"]

[Event "Titled Tuesday Blitz August 08 Early 2023"]
[White "Aradhya, Garg"]
[Black "Goroshkov, Maksym"]
[WhiteFideId "25006746"]
[BlackFideId "14142716"]
[WhiteElo "2762"]
[BlackElo "2663"]
[Result "1/2-1/2"]
[Round "11"]
[TimeControl "180+1"]
[Date "2023.08.08"]
[WhiteClock "0:00:06"]
[BlackClock "0:00:21"]
[Board "36"]

1. d4 {[%clk 0:03:00]}  Nf6 {[%clk 0:02:59]} 2. c4 {[%clk 0:03:01]}  e5 {[%clk 0:02:59]} 3. dxe5 {[%clk 0:03:00]}  Ng4 {[%clk 0:02:59]} 4. Bf4 {[%clk 0:03:00]}  Nc6 {[%clk 0:02:59]} 5. Nf3 {[%clk 0:03:00]}  Bb4+ {[%clk 0:03:00]} 6. Nbd2 {[%clk 0:02:59]}  Qe7 {[%clk 0:03:01]} 7. e3 {[%clk 0:02:59]}  Ngxe5 {[%clk 0:03:01]} 8. Nxe5 {[%clk 0:03:00]}  Nxe5 {[%clk 0:03:01]} 9. Be2 {[%clk 0:03:00]}  d6 {[%clk 0:02:57]} 10. O-O {[%clk 0:02:53]}  Bxd2 {[%clk 0:02:56]} 11. Qxd2 {[%clk 0:02:53]}  O-O {[%clk 0:02:55]} 12. Rac1 {[%clk 0:02:50]}  b6 {[%clk 0:02:55]} 13. Qd5 {[%clk 0:02:35]}  Rb8 {[%clk 0:02:53]} 14. c5 {[%clk 0:02:35]}  bxc5 {[%clk 0:02:47]} 15. Bxe5 {[%clk 0:02:35]}  Bb7 {[%clk 0:02:25]} 16. Bxd6 {[%clk 0:02:28]}  cxd6 {[%clk 0:02:23]} 17. Qd2 {[%clk 0:02:27]}  Qg5 {[%clk 0:02:18]} 18. g3 {[%clk 0:02:25]}  Rfd8 {[%clk 0:02:16]} 19. Rfd1 {[%clk 0:02:25]}  Qf6 {[%clk 0:02:09]} 20. b4 {[%clk 0:02:20]}  cxb4 {[%clk 0:02:06]} 21. Qxb4 {[%clk 0:02:20]}  Bf3 {[%clk 0:02:05]} 22. Qe1 {[%clk 0:02:19]}  h5 {[%clk 0:01:56]} 23. Rd4 {[%clk 0:02:16]}  Rb2 {[%clk 0:01:46]} 24. Rf4 {[%clk 0:01:52]}  Rxe2 {[%clk 0:01:45]} 25. Qa5 {[%clk 0:01:53]}  Qb2 {[%clk 0:01:40]} 26. Qxd8+ {[%clk 0:01:31]}  Kh7 {[%clk 0:01:39]} 27. Rxf3 {[%clk 0:00:58]}  Qxc1+ {[%clk 0:01:37]} 28. Kg2 {[%clk 0:00:59]}  Re1 {[%clk 0:01:36]} 29. Qg5 {[%clk 0:00:45]}  Rg1+ {[%clk 0:01:29]} 30. Kh3 {[%clk 0:00:45]}  Qc8+ {[%clk 0:01:22]} 31. Kh4 {[%clk 0:00:45]}  Kg8 {[%clk 0:01:07]} 32. Qxh5 {[%clk 0:00:40]}  Qe6 {[%clk 0:01:01]} 33. g4 {[%clk 0:00:33]}  g6 {[%clk 0:00:46]} 34. Qg5 {[%clk 0:00:33]}  Kg7 {[%clk 0:00:35]} 35. Rg3 {[%clk 0:00:23]}  Rc1 {[%clk 0:00:31]} 36. Qa5 {[%clk 0:00:15]}  Rc5 {[%clk 0:00:28]} 37. Qd2 {[%clk 0:00:14]}  Qe4 {[%clk 0:00:26]} 38. Qd4+ {[%clk 0:00:14]}  Qxd4 {[%clk 0:00:27]} 39. exd4 {[%clk 0:00:14]}  Rc2 {[%clk 0:00:28]} 40. Ra3 {[%clk 0:00:13]}  Rxf2 {[%clk 0:00:28]} 41. Kg3 {[%clk 0:00:13]}  Rd2 {[%clk 0:00:28]} 42. Ra4 {[%clk 0:00:12]}  Kf6 {[%clk 0:00:24]} 43. Kf4 {[%clk 0:00:10]}  Rxh2 {[%clk 0:00:24]} 44. Rxa7 {[%clk 0:00:10]}  Rd2 {[%clk 0:00:25]} 45. Ke3 {[%clk 0:00:04]}  Rb2 {[%clk 0:00:24]} 46. g5+ {[%clk 0:00:04]}  Kxg5 {[%clk 0:00:24]} 47. Rxf7 {[%clk 0:00:04]}  Rxa2 {[%clk 0:00:24]} 48. Rd7 {[%clk 0:00:05]}  Kf5 {[%clk 0:00:21]} 49. Rxd6 {[%clk 0:00:04]}  Ra3+ {[%clk 0:00:22]} 50. Kf2 {[%clk 0:00:05]}  g5 {[%clk 0:00:23]} 51. Rd8 {[%clk 0:00:05]}  Kf4 {[%clk 0:00:23]} 52. Kg2 {[%clk 0:00:05]}  Ra2+ {[%clk 0:00:23]} 53. Kg1 {[%clk 0:00:06]}  Kg3 {[%clk 0:00:23]} 54. Rf8 {[%clk 0:00:06]}  g4 {[%clk 0:00:22]} 55. Rf1 {[%clk 0:00:07]}  Rd2 {[%clk 0:00:20]} 56. Kh1 {[%clk 0:00:07]}  Rxd4 {[%clk 0:00:19]} 57. Ra1 {[%clk 0:00:07]}  Kh3 {[%clk 0:00:19]} 58. Kg1 {[%clk 0:00:07]}  Rd3 {[%clk 0:00:19]} 59. Re1 {[%clk 0:00:06]}  Rf3 {[%clk 0:00:19]} 60. Rd1 {[%clk 0:00:05]}  Kg3 {[%clk 0:00:19]} 61. Re1 {[%clk 0:00:05]}  Rd3 {[%clk 0:00:20]} 62. Rc1 {[%clk 0:00:04]}  Kf3 {[%clk 0:00:20]} 63. Rf1+ {[%clk 0:00:04]}  Ke2 {[%clk 0:00:21]} 64. Rf2+ {[%clk 0:00:04]}  Ke3 {[%clk 0:00:20]} 65. Kg2 {[%clk 0:00:05]}  Ke4 {[%clk 0:00:20]} 66. Rf8 {[%clk 0:00:05]}  Rf3 {[%clk 0:00:20]} 67. Re8+ {[%clk 0:00:05]}  Kf4 {[%clk 0:00:20]} 68. Rf8+ {[%clk 0:00:05]}  Ke3 {[%clk 0:00:21]} 69. Re8+ {[%clk 0:00:06]}  Kd3 {[%clk 0:00:21]} 70. Rg8 {[%clk 0:00:06]}  Rf4 {[%clk 0:00:19]} 71. Kg3 {[%clk 0:00:06]}  Rd4 {[%clk 0:00:20]} 72. Rxg4 {[%clk 0:00:05]}  Rxg4+ {[%clk 0:00:21]} 73. Kxg4 {[%clk 0:00:06]} 1/2-1/2


[Site "https://www.chess.com"]

[Event "Titled Tuesday Blitz August 08 Early 2023"]
[White "Zeynalli, Rashad"]
[Black "Kumsiashvili, Nikoloz"]
[WhiteFideId "13403320"]
[BlackFideId "13600621"]
[WhiteElo "2663"]
[BlackElo "2758"]
[Result "0-1"]
[Round "11"]
[TimeControl "180+1"]
[Date "2023.08.08"]
[WhiteClock "0:00:45"]
[BlackClock "0:00:38"]
[Board "37"]

1. e4 {[%clk 0:02:58]}  c5 {[%clk 0:02:59]} 2. Nf3 {[%clk 0:02:58]}  e6 {[%clk 0:03:00]} 3. g3 {[%clk 0:02:58]}  Nc6 {[%clk 0:03:00]} 4. Bg2 {[%clk 0:02:58]}  d5 {[%clk 0:02:59]} 5. exd5 {[%clk 0:02:58]}  exd5 {[%clk 0:02:59]} 6. d4 {[%clk 0:02:58]}  Nf6 {[%clk 0:02:58]} 7. O-O {[%clk 0:02:58]}  Be7 {[%clk 0:02:53]} 8. dxc5 {[%clk 0:02:58]}  O-O {[%clk 0:02:53]} 9. a3 {[%clk 0:02:49]}  Bxc5 {[%clk 0:02:49]} 10. b4 {[%clk 0:02:50]}  Bb6 {[%clk 0:02:43]} 11. Bb2 {[%clk 0:02:49]}  Bg4 {[%clk 0:02:36]} 12. h3 {[%clk 0:02:47]}  Bh5 {[%clk 0:02:36]} 13. Nc3 {[%clk 0:02:44]}  Ne4 {[%clk 0:02:26]} 14. g4 {[%clk 0:02:27]}  Nxc3 {[%clk 0:02:14]} 15. Bxc3 {[%clk 0:02:26]}  Bg6 {[%clk 0:02:15]} 16. Nd4 {[%clk 0:02:13]}  Bxd4 {[%clk 0:01:14]} 17. Bxd4 {[%clk 0:02:11]}  Bxc2 {[%clk 0:01:13]} 18. Qxc2 {[%clk 0:02:08]}  Nxd4 {[%clk 0:01:13]} 19. Qd3 {[%clk 0:02:08]}  Ne6 {[%clk 0:01:12]} 20. Qxd5 {[%clk 0:02:05]}  Qh4 {[%clk 0:01:00]} 21. Qxb7 {[%clk 0:01:59]}  Ng5 {[%clk 0:01:00]} 22. Kh2 {[%clk 0:01:53]}  Rad8 {[%clk 0:00:57]} 23. Qxa7 {[%clk 0:01:12]}  Rd3 {[%clk 0:00:52]} 24. f3 {[%clk 0:01:12]}  Rd2 {[%clk 0:00:41]} 25. Kg1 {[%clk 0:00:48]}  Nxh3+ {[%clk 0:00:39]} 26. Bxh3 {[%clk 0:00:45]}  Qg3+ {[%clk 0:00:38]} 0-1


[Site "https://www.chess.com"]

[Event "Titled Tuesday Blitz August 08 Early 2023"]
[White "KarolKacprzak"]
[Black "Csonka, Balazs"]
[BlackFideId "742910"]
[WhiteElo "2692"]
[BlackElo "2722"]
[Result "1-0"]
[Round "11"]
[TimeControl "180+1"]
[Date "2023.08.08"]
[WhiteClock "0:00:59"]
[BlackClock "0:00:07"]
[Board "38"]

1. e4 {[%clk 0:03:00]}  c5 {[%clk 0:02:58]} 2. Nf3 {[%clk 0:03:01]}  Nc6 {[%clk 0:02:55]} 3. d4 {[%clk 0:03:01]}  cxd4 {[%clk 0:02:56]} 4. Nxd4 {[%clk 0:03:02]}  Nf6 {[%clk 0:02:56]} 5. Nc3 {[%clk 0:03:02]}  e6 {[%clk 0:02:53]} 6. Nxc6 {[%clk 0:02:56]}  bxc6 {[%clk 0:02:54]} 7. e5 {[%clk 0:02:52]}  Nd5 {[%clk 0:02:54]} 8. Ne4 {[%clk 0:02:52]}  Qc7 {[%clk 0:02:55]} 9. f4 {[%clk 0:02:51]}  Qb6 {[%clk 0:02:55]} 10. c4 {[%clk 0:02:51]}  Bb4+ {[%clk 0:02:54]} 11. Ke2 {[%clk 0:02:52]}  f5 {[%clk 0:02:54]} 12. Nf2 {[%clk 0:02:51]}  Ne7 {[%clk 0:02:52]} 13. Be3 {[%clk 0:02:47]}  Bc5 {[%clk 0:02:45]} 14. Bxc5 {[%clk 0:02:46]}  Qxc5 {[%clk 0:02:46]} 15. Kf3 {[%clk 0:02:47]}  g5 {[%clk 0:02:28]} 16. Qd6 {[%clk 0:02:40]}  Qb6 {[%clk 0:02:22]} 17. Nd3 {[%clk 0:02:33]}  g4+ {[%clk 0:02:12]} 18. Ke2 {[%clk 0:02:31]}  a5 {[%clk 0:01:59]} 19. Qc5 {[%clk 0:02:29]}  Qb8 {[%clk 0:01:53]} 20. g3 {[%clk 0:02:28]}  h5 {[%clk 0:01:43]} 21. h4 {[%clk 0:02:28]}  Ba6 {[%clk 0:01:33]} 22. Bg2 {[%clk 0:02:20]}  Kf7 {[%clk 0:01:34]} 23. Rhc1 {[%clk 0:02:16]}  Rd8 {[%clk 0:01:22]} 24. Rc2 {[%clk 0:02:14]}  Qc7 {[%clk 0:01:00]} 25. Rd1 {[%clk 0:02:14]}  Rab8 {[%clk 0:00:58]} 26. Kf2 {[%clk 0:02:10]}  Rb7 {[%clk 0:00:54]} 27. Rcd2 {[%clk 0:02:05]}  Ke8 {[%clk 0:00:46]} 28. b3 {[%clk 0:01:48]}  a4 {[%clk 0:00:44]} 29. b4 {[%clk 0:01:48]}  Rdb8 {[%clk 0:00:44]} 30. a3 {[%clk 0:01:48]}  Qb6 {[%clk 0:00:38]} 31. Qxb6 {[%clk 0:01:37]}  Rxb6 {[%clk 0:00:39]} 32. Nc5 {[%clk 0:01:37]}  Bxc4 {[%clk 0:00:36]} 33. Nxd7 {[%clk 0:01:37]}  Bd5 {[%clk 0:00:28]} 34. Nxb6 {[%clk 0:01:28]}  Rxb6 {[%clk 0:00:27]} 35. Rc1 {[%clk 0:01:29]}  Bxg2 {[%clk 0:00:27]} 36. Kxg2 {[%clk 0:01:27]}  Nd5 {[%clk 0:00:28]} 37. Kf2 {[%clk 0:01:26]}  Kd7 {[%clk 0:00:28]} 38. Rc5 {[%clk 0:01:26]}  Kc7 {[%clk 0:00:28]} 39. Ra5 {[%clk 0:01:23]}  Kb7 {[%clk 0:00:26]} 40. Rc2 {[%clk 0:01:19]}  Nc7 {[%clk 0:00:20]} 41. Rxa4 {[%clk 0:01:15]}  Nb5 {[%clk 0:00:21]} 42. Ra5 {[%clk 0:01:16]}  Nd4 {[%clk 0:00:19]} 43. Rc3 {[%clk 0:01:14]}  Kb8 {[%clk 0:00:15]} 44. Rac5 {[%clk 0:01:10]}  Kc7 {[%clk 0:00:11]} 45. Rd3 {[%clk 0:01:05]}  Nb5 {[%clk 0:00:12]} 46. a4 {[%clk 0:01:05]}  Na7 {[%clk 0:00:12]} 47. b5 {[%clk 0:01:05]}  Kb8 {[%clk 0:00:09]} 48. Rd6 {[%clk 0:01:04]}  Kc7 {[%clk 0:00:07]} 49. Rxe6 {[%clk 0:00:59]} 1-0


[Site "https://www.chess.com"]

[Event "Titled Tuesday Blitz August 08 Early 2023"]
[White "Zemlyanskii, Ivan"]
[Black "Borgaonkar Akshay"]
[WhiteFideId "24249971"]
[BlackFideId "25639110"]
[WhiteElo "2886"]
[BlackElo "2596"]
[Result "1-0"]
[Round "11"]
[TimeControl "180+1"]
[Date "2023.08.08"]
[WhiteClock "0:00:41"]
[BlackClock "0:00:51"]
[Board "40"]

1. d4 {[%clk 0:03:00]}  Nf6 {[%clk 0:02:59]} 2. c4 {[%clk 0:03:01]}  g6 {[%clk 0:02:59]} 3. h4 {[%clk 0:03:00]}  Bg7 {[%clk 0:02:59]} 4. Nc3 {[%clk 0:03:00]}  d6 {[%clk 0:02:55]} 5. e4 {[%clk 0:03:00]}  Nc6 {[%clk 0:02:55]} 6. Be2 {[%clk 0:03:01]}  O-O {[%clk 0:02:55]} 7. d5 {[%clk 0:03:01]}  Ne5 {[%clk 0:02:55]} 8. Nf3 {[%clk 0:03:01]}  c6 {[%clk 0:02:53]} 9. Nxe5 {[%clk 0:02:53]}  dxe5 {[%clk 0:02:53]} 10. Be3 {[%clk 0:02:54]}  h5 {[%clk 0:02:49]} 11. f3 {[%clk 0:02:52]}  cxd5 {[%clk 0:02:43]} 12. cxd5 {[%clk 0:02:52]}  Ne8 {[%clk 0:02:43]} 13. Qb3 {[%clk 0:02:48]}  Nd6 {[%clk 0:02:43]} 14. O-O-O {[%clk 0:02:44]}  Bd7 {[%clk 0:02:38]} 15. g4 {[%clk 0:02:43]}  hxg4 {[%clk 0:02:37]} 16. fxg4 {[%clk 0:02:44]}  Rc8 {[%clk 0:02:37]} 17. Kb1 {[%clk 0:02:43]}  b5 {[%clk 0:02:36]} 18. h5 {[%clk 0:02:43]}  Nc4 {[%clk 0:02:34]} 19. Bxc4 {[%clk 0:02:03]}  Rxc4 {[%clk 0:02:30]} 20. h6 {[%clk 0:01:39]}  Bf6 {[%clk 0:02:29]} 21. g5 {[%clk 0:01:38]}  Bh8 {[%clk 0:02:29]} 22. h7+ {[%clk 0:01:38]}  Kg7 {[%clk 0:02:29]} 23. d6 {[%clk 0:01:25]}  Be6 {[%clk 0:02:16]} 24. dxe7 {[%clk 0:01:07]}  Qxe7 {[%clk 0:02:17]} 25. Qxb5 {[%clk 0:01:04]}  Qc7 {[%clk 0:01:37]} 26. Nd5 {[%clk 0:00:58]}  Bxd5 {[%clk 0:01:36]} 27. exd5 {[%clk 0:00:45]}  Rb8 {[%clk 0:01:34]} 28. d6 {[%clk 0:00:44]}  Rxb5 {[%clk 0:01:19]} 29. dxc7 {[%clk 0:00:44]}  Rxc7 {[%clk 0:01:20]} 30. Rd8 {[%clk 0:00:43]}  Rb8 {[%clk 0:00:51]} 31. Rxb8 {[%clk 0:00:42]}  Rc8 {[%clk 0:00:51]} 32. Rxc8 {[%clk 0:00:41]} 1-0


[Site "https://www.chess.com"]